Workbook

Sheet 18 个时段预算
B1: 公司预算
G2: 开始日期 | H2: 2011-01-01 | I2: 时段长度（天） | K2: 14 | L2: 结束日期 | M2: =TEXT(T4,"yyyy/mm/dd") -> 2012/08/26
C4: =UPPER(TEXT(H2,"dd-mmm")) -> 01-JAN | D4: =UPPER(TEXT(C4+DayInterval,"dd-mmm")) -> 15-JAN | E4: =UPPER(TEXT(D4+DayInterval,"dd-mmm")) -> 29-JAN | F4: =UPPER(TEXT(E4+DayInterval,"dd-mmm")) -> 12-FEB | G4: =UPPER(TEXT(F4+DayInterval,"dd-mmm")) -> 26-FEB | H4: =UPPER(TEXT(G4+DayInterval,"dd-mmm")) -> 11-MAR | I4: =UPPER(TEXT(H4+DayInterval,"dd-mmm")) -> 25-MAR | J4: =UPPER(TEXT(I4+DayInterval,"dd-mmm")) -> 08-APR | K4: =UPPER(TEXT(J4+DayInterval,"dd-mmm")) -> 22-APR | L4: =UPPER(TEXT(K4+DayInterval,"dd-mmm")) -> 06-MAY | M4: =UPPER(TEXT(L4+DayInterval,"dd-mmm")) -> 20-MAY | N4: =UPPER(TEXT(M4+DayInterval,"dd-mmm")) -> 03-JUN | O4: =UPPER(TEXT(N4+DayInterval,"dd-mmm")) -> 17-JUN | P4: =UPPER(TEXT(O4+DayInterval,"dd-mmm")) -> 01-JUL | Q4: =UPPER(TEXT(P4+DayInterval,"dd-mmm")) -> 15-JUL | R4: =UPPER(TEXT(Q4+DayInterval,"dd-mmm")) -> 29-JUL | S4: =UPPER(TEXT(R4+DayInterval,"dd-mmm")) -> 12-AUG | T4: =UPPER(TEXT(S4+DayInterval,"dd-mmm")) -> 26-AUG
C5: =UPPER(TEXT(H2,"[$-C04]mmm-dd")) -> 一月-01 | D5: =UPPER(TEXT(C4+DayInterval,"[$-C04]mmm-dd")) -> 一月-15 | E5: 一月-29 | F5: 二月-12 | G5: 二月-26 | H5: 三月-11 | I5: 三月-25 | J5: 四月-08 | K5: 四月-22 | L5: 五月-06 | M5: 五月-20 | N5: 六月-03 | O5: 六月-17 | P5: 七月-01 | Q5: 七月-15 | R5: 七月-29 | S5: 八月-12 | T5: 八月-26 | U5: 总计 | V5: 趋势
B6: 净收入 | C6: =IncomeTable[[#Totals],[Week 1]]-ExpensesTable[[#Totals],[Week 1]] -> ¥17,500 | D6: =IncomeTable[[#Totals],[Week 2]]-ExpensesTable[[#Totals],[Week 2]] -> ¥22,360 | E6: =IncomeTable[[#Totals],[Week 3]]-ExpensesTable[[#Totals],[Week 3]] -> ¥14,420 | F6: =IncomeTable[[#Totals],[Week 4]]-ExpensesTable[[#Totals],[Week 4]] -> ¥22,530 | G6: =IncomeTable[[#Totals],[Week 5]]-ExpensesTable[[#Totals],[Week 5]] -> ¥15,330 | H6: =IncomeTable[[#Totals],[Week 6]]-ExpensesTable[[#Totals],[Week 6]] -> ¥10,860 | I6: =IncomeTable[[#Totals],[Week 7]]-ExpensesTable[[#Totals],[Week 7]] -> ¥15,940 | J6: =IncomeTable[[#Totals],[Week 8]]-ExpensesTable[[#Totals],[Week 8]] -> 0 | K6: =IncomeTable[[#Totals],[Week 9]]-ExpensesTable[[#Totals],[Week 9]] -> 0 | L6: =IncomeTable[[#Totals],[Week 10]]-ExpensesTable[[#Totals],[Week 10]] -> 0 | M6: =IncomeTable[[#Totals],[Week 11]]-ExpensesTable[[#Totals],[Week 11]] -> 0 | N6: =IncomeTable[[#Totals],[Week 12]]-ExpensesTable[[#Totals],[Week 12]] -> 0 | O6: =IncomeTable[[#Totals],[Week 13]]-ExpensesTable[[#Totals],[Week 13]] -> 0 | P6: =IncomeTable[[#Totals],[Week 14]]-ExpensesTable[[#Totals],[Week 14]] -> 0 | Q6: =IncomeTable[[#Totals],[Week 15]]-ExpensesTable[[#Totals],[Week 15]] -> 0 | R6: =IncomeTable[[#Totals],[Week 16]]-ExpensesTable[[#Totals],[Week 16]] -> 0 | S6: =IncomeTable[[#Totals],[Week 17]]-ExpensesTable[[#Totals],[Week 17]] -> 0 | T6: =IncomeTable[[#Totals],[Week 18]]-ExpensesTable[[#Totals],[Week 18]] -> 0 | U6: =IncomeTable[[#Totals],[Total]]-ExpensesTable[[#Totals],[Total]] -> ¥118,940
A8: 收入
B9: 收入项目 1 | C9: ¥30,000 | D9: ¥35,000 | E9: ¥29,780 | F9: ¥33,840 | G9: ¥28,580 | H9: ¥28,090 | I9: ¥32,200 | U9: =SUM(IncomeTable[[#This Row],[Week 1]:[Week 18]]) -> ¥217,490
B10: 收入项目 2 | C10: 11,500 | D10: 12,000 | E10: 11,440 | F10: 14,000 | G10: 13,580 | H10: 11,540 | I10: 12,450 | U10: =SUM(IncomeTable[[#This Row],[Week 1]:[Week 18]]) -> ¥86,510
B11: 收入项目 3 | C11: 3,000 | D11: 3,500 | E11: 3,920 | F11: 3,260 | G11: 3,810 | H11: 3,640 | I11: 3,150 | U11: =SUM(IncomeTable[[#This Row],[Week 1]:[Week 18]]) -> ¥24,280
B12: 总收入 | C12: =SUBTOTAL(109,IncomeTable[Week 1]) -> ¥44,500 | D12: =SUBTOTAL(109,IncomeTable[Week 2]) -> ¥50,500 | E12: =SUBTOTAL(109,IncomeTable[Week 3]) -> ¥45,140 | F12: =SUBTOTAL(109,IncomeTable[Week 4]) -> ¥51,100 | G12: =SUBTOTAL(109,IncomeTable[Week 5]) -> ¥45,970 | H12: =SUBTOTAL(109,IncomeTable[Week 6]) -> ¥43,270 | I12: =SUBTOTAL(109,IncomeTable[Week 7]) -> ¥47,800 | J12: =SUBTOTAL(109,IncomeTable[Week 8]) -> 0 | K12: =SUBTOTAL(109,IncomeTable[Week 9]) -> 0 | L12: =SUBTOTAL(109,IncomeTable[Week 10]) -> 0 | M12: =SUBTOTAL(109,IncomeTable[Week 11]) -> 0 | N12: =SUBTOTAL(109,IncomeTable[Week 12]) -> 0 | O12: =SUBTOTAL(109,IncomeTable[Week 13]) -> 0 | P12: =SUBTOTAL(109,IncomeTable[Week 14]) -> 0 | Q12: =SUBTOTAL(109,IncomeTable[Week 15]) -> 0 | R12: =SUBTOTAL(109,IncomeTable[Week 16]) -> 0 | S12: =SUBTOTAL(109,IncomeTable[Week 17]) -> 0 | T12: =SUBTOTAL(109,IncomeTable[Week 18]) -> 0 | U12: =SUBTOTAL(109,IncomeTable[Total]) -> ¥328,280
A14: 支出
B15: 工资 | C15: ¥15,000 | D15: ¥15,770 | E15: ¥18,230 | F15: ¥15,290 | G15: ¥17,590 | H15: ¥19,470 | I15: ¥18,750 | U15: =SUM(ExpensesTable[[#This Row],[Week 1]:[Week 18]]) -> ¥120,100
B16: 租金 | C16: 10,000 | D16: 10,000 | E16: 10,000 | F16: 10,000 | G16: 10,000 | H16: 10,000 | I16: 10,000 | U16: =SUM(ExpensesTable[[#This Row],[Week 1]:[Week 18]]) -> ¥70,000
B17: 电费 | C17: 400 | D17: 430 | E17: 400 | F17: 420 | G17: 450 | H17: 400 | I17: 420 | U17: =SUM(ExpensesTable[[#This Row],[Week 1]:[Week 18]]) -> ¥2,920
B18: 电话费 | C18: 120 | D18: 110 | E18: 130 | F18: 140 | G18: 110 | H18: 150 | I18: 150 | U18: =SUM(ExpensesTable[[#This Row],[Week 1]:[Week 18]]) -> ¥910
B19: 网费 | C19: 150 | D19: 150 | E19: 150 | F19: 150 | G19: 150 | H19: 150 | I19: 150 | U19: =SUM(ExpensesTable[[#This Row],[Week 1]:[Week 18]]) -> ¥1,050
B20: 水费 | C20: 110 | D20: 100 | E20: 130 | F20: 100 | G20: 130 | H20: 100 | I20: 120 | U20: =SUM(ExpensesTable[[#This Row],[Week 1]:[Week 18]]) -> ¥790
B21: 煤气费 | C21: 230 | D21: 270 | E21: 260 | F21: 270 | G21: 220 | H21: 290 | I21: 210 | U21: =SUM(ExpensesTable[[#This Row],[Week 1]:[Week 18]]) -> ¥1,750
B22: 垃圾清理费 | C22: 40 | D22: 40 | E22: 40 | F22: 40 | G22: 40 | H22: 40 | I22: 40 | U22: =SUM(ExpensesTable[[#This Row],[Week 1]:[Week 18]]) -> ¥280
B23: 有线电视 | C23: 100 | D23: 100 | E23: 100 | F23: 100 | G23: 100 | H23: 100 | I23: 100 | U23: =SUM(ExpensesTable[[#This Row],[Week 1]:[Week 18]]) -> ¥700
B24: 办公用品费 | C24: 250 | D24: 570 | E24: 680 | F24: 1,460 | G24: 1,250 | H24: 1,110 | I24: 1,320 | U24: =SUM(ExpensesTable[[#This Row],[Week 1]:[Week 18]]) -> ¥6,640
B25: 保险费 | C25: 600 | D25: 600 | E25: 600 | F25: 600 | G25: 600 | H25: 600 | I25: 600 | U25: =SUM(ExpensesTable[[#This Row],[Week 1]:[Week 18]]) -> ¥4,200
B26: 总支出 | C26: =SUBTOTAL(109,ExpensesTable[Week 1]) -> ¥27,000.00 | D26: =SUBTOTAL(109,ExpensesTable[Week 2]) -> ¥28,140.00 | E26: =SUBTOTAL(109,ExpensesTable[Week 3]) -> ¥30,720.00 | F26: =SUBTOTAL(109,ExpensesTable[Week 4]) -> ¥28,570.00 | G26: =SUBTOTAL(109,ExpensesTable[Week 5]) -> ¥30,640.00 | H26: =SUBTOTAL(109,ExpensesTable[Week 6]) -> ¥32,410.00 | I26: =SUBTOTAL(109,ExpensesTable[Week 7]) -> ¥31,860.00 | J26: =SUBTOTAL(109,ExpensesTable[Week 8]) -> 0 | K26: =SUBTOTAL(109,ExpensesTable[Week 9]) -> 0 | L26: =SUBTOTAL(109,ExpensesTable[Week 10]) -> 0 | M26: =SUBTOTAL(109,ExpensesTable[Week 11]) -> 0 | N26: =SUBTOTAL(109,ExpensesTable[Week 12]) -> 0 | O26: =SUBTOTAL(109,ExpensesTable[Week 13]) -> 0 | P26: =SUBTOTAL(109,ExpensesTable[Week 14]) -> 0 | Q26: =SUBTOTAL(109,ExpensesTable[Week 15]) -> 0 | R26: =SUBTOTAL(109,ExpensesTable[Week 16]) -> 0 | S26: =SUBTOTAL(109,ExpensesTable[Week 17]) -> 0 | T26: =SUBTOTAL(109,ExpensesTable[Week 18]) -> 0 | U26: =SUBTOTAL(109,ExpensesTable[Total]) -> ¥209,340.00
